[Event "Titled Tuesday Blitz August 08 Early 2023"]
[White "Amanov, Zhanibek"]
[Black "Tikhonov, Viacheslav"]
[WhiteFideId "13700189"]
[BlackFideId "44196407"]
[WhiteElo "2356"]
[BlackElo "2519"]
[Result "0-1"]
[Round "7"]
[TimeControl "180+1"]
[Date "2023.08.08"]
[WhiteClock "0:00:02"]
[BlackClock "0:00:36"]
[Board "136"]

1. e4 {[%clk 0:03:00]}  c5 {[%clk 0:02:59]} 2. Nf3 {[%clk 0:03:01]}  Nc6 {[%clk 0:03:00]} 3. Bb5 {[%clk 0:03:00]}  e5 {[%clk 0:03:00]} 4. Bxc6 {[%clk 0:02:58]}  dxc6 {[%clk 0:03:00]} 5. Nxe5 {[%clk 0:02:52]}  Qd4 {[%clk 0:02:59]} 6. Nf3 {[%clk 0:02:49]}  Qxe4+ {[%clk 0:02:59]} 7. Qe2 {[%clk 0:02:50]}  Qxe2+ {[%clk 0:02:59]} 8. Kxe2 {[%clk 0:02:51]}  Bd6 {[%clk 0:02:42]} 9. Re1 {[%clk 0:02:48]}  Ne7 {[%clk 0:02:41]} 10. Nc3 {[%clk 0:02:45]}  b6 {[%clk 0:02:29]} 11. d3 {[%clk 0:02:31]}  f5 {[%clk 0:02:26]} 12. Kf1 {[%clk 0:02:19]}  O-O {[%clk 0:02:23]} 13. Bd2 {[%clk 0:01:59]}  Nd5 {[%clk 0:02:22]} 14. Nxd5 {[%clk 0:01:40]}  cxd5 {[%clk 0:02:22]} 15. c4 {[%clk 0:01:39]}  Bb7 {[%clk 0:02:11]} 16. Re6 {[%clk 0:01:33]}  Rad8 {[%clk 0:02:10]} 17. Bg5 {[%clk 0:00:36]}  Rd7 {[%clk 0:02:09]} 18. Ne5 {[%clk 0:00:35]}  Bxe5 {[%clk 0:02:04]} 19. Rxe5 {[%clk 0:00:36]}  h6 {[%clk 0:01:54]} 20. Be3 {[%clk 0:00:28]}  f4 {[%clk 0:01:45]} 21. Bc1 {[%clk 0:00:24]}  dxc4 {[%clk 0:01:42]} 22. dxc4 {[%clk 0:00:23]}  Rd1+ {[%clk 0:01:13]} 23. Ke2 {[%clk 0:00:21]}  Rh1 {[%clk 0:00:57]} 24. g3 {[%clk 0:00:16]}  f3+ {[%clk 0:00:48]} 25. Kd3 {[%clk 0:00:10]}  Rd8+ {[%clk 0:00:47]} 26. Kc2 {[%clk 0:00:06]}  Rdd1 {[%clk 0:00:47]} 27. Re7 {[%clk 0:00:05]}  Bc6 {[%clk 0:00:44]} 28. Rxa7 {[%clk 0:00:04]}  Be4+ {[%clk 0:00:44]} 29. Kb3 {[%clk 0:00:02]}  Rxc1 {[%clk 0:00:44]} 30. Rxc1 {[%clk 0:00:03]}  Rxc1 {[%clk 0:00:45]} 31. Ra6 {[%clk 0:00:03]}  Rc2 {[%clk 0:00:37]} 32. Rxb6 {[%clk 0:00:03]}  Rxf2 {[%clk 0:00:38]} 33. a4 {[%clk 0:00:03]}  Rxh2 {[%clk 0:00:36]} 34. a5 {[%clk 0:00:02]}  f2 {[%clk 0:00:36]} 0-1


[Site "https://www.chess.com"]

[Event "Titled Tuesday Blitz August 08 Early 2023"]
[White "Ladan, Nicholas"]
[Black "Gamayev, Oleg"]
[WhiteFideId "30918855"]
[BlackFideId "2802813"]
[WhiteElo "2427"]
[BlackElo "2608"]
[Result "0-1"]
[Round "7"]
[TimeControl "180+1"]
[Date "2023.08.08"]
[WhiteClock "0:01:06"]
[BlackClock "0:01:45"]
[Board "144"]

1. d4 {[%clk 0:02:48]}  d6 {[%clk 0:03:00]} 2. Nf3 {[%clk 0:02:48]}  Nf6 {[%clk 0:03:01]} 3. Bf4 {[%clk 0:02:46]}  g6 {[%clk 0:02:59]} 4. e3 {[%clk 0:02:46]}  Bg7 {[%clk 0:03:00]} 5. Nbd2 {[%clk 0:02:47]}  O-O {[%clk 0:03:00]} 6. h4 {[%clk 0:02:47]}  h5 {[%clk 0:02:56]} 7. Bd3 {[%clk 0:02:44]}  Nc6 {[%clk 0:02:55]} 8. c3 {[%clk 0:02:44]}  Bg4 {[%clk 0:02:52]} 9. Qb3 {[%clk 0:02:40]}  Rb8 {[%clk 0:02:49]} 10. Ng5 {[%clk 0:02:38]}  e5 {[%clk 0:02:27]} 11. Bxg6 {[%clk 0:02:25]}  exf4 {[%clk 0:02:25]} 12. Nxf7 {[%clk 0:02:23]}  Qe7 {[%clk 0:02:14]} 13. Nh6+ {[%clk 0:02:13]}  Kh8 {[%clk 0:02:14]} 14. Nf7+ {[%clk 0:02:14]}  Rxf7 {[%clk 0:02:14]} 15. Qxf7 {[%clk 0:02:13]}  Qxf7 {[%clk 0:02:13]} 16. Bxf7 {[%clk 0:02:13]}  fxe3 {[%clk 0:02:14]} 17. fxe3 {[%clk 0:02:12]}  Bh6 {[%clk 0:02:11]} 18. Nf1 {[%clk 0:02:01]}  Rf8 {[%clk 0:01:59]} 19. Bc4 {[%clk 0:01:55]}  Ne4 {[%clk 0:01:56]} 20. Bd3 {[%clk 0:01:55]}  Nf2 {[%clk 0:01:56]} 21. e4 {[%clk 0:01:06]}  Nxd3# {[%clk 0:01:45]} 0-1


[Site "https://www.chess.com"]

[Event "Titled Tuesday Blitz August 08 Early 2023"]
[White "Chor, Kevin"]
[Black "Vifleemskaia, Svetlana"]
[WhiteFideId "2090740"]
[BlackFideId "4129490"]
[WhiteElo "2510"]
[BlackElo "2383"]
[Result "1-0"]
[Round "7"]
[TimeControl "180+1"]
[Date "2023.08.08"]
[WhiteClock "0:00:16"]
[BlackClock "0:00:00"]
[Board "148"]

1. e4 {[%clk 0:03:00]}  e5 {[%clk 0:02:58]} 2. Nf3 {[%clk 0:03:01]}  Nc6 {[%clk 0:02:58]} 3. Bb5 {[%clk 0:03:01]}  a6 {[%clk 0:02:57]} 4. Ba4 {[%clk 0:03:01]}  Nf6 {[%clk 0:02:58]} 5. O-O {[%clk 0:03:02]}  Be7 {[%clk 0:02:58]} 6. Re1 {[%clk 0:03:02]}  b5 {[%clk 0:02:58]} 7. Bb3 {[%clk 0:03:02]}  d6 {[%clk 0:02:59]} 8. c3 {[%clk 0:03:03]}  O-O {[%clk 0:02:56]} 9. d4 {[%clk 0:03:03]}  Bg4 {[%clk 0:02:56]} 10. Be3 {[%clk 0:03:03]}  Na5 {[%clk 0:02:53]} 11. Bc2 {[%clk 0:03:01]}  Nc4 {[%clk 0:02:53]} 12. Bc1 {[%clk 0:03:00]}  c5 {[%clk 0:02:43]} 13. b3 {[%clk 0:02:58]}  Nb6 {[%clk 0:02:41]} 14. dxc5 {[%clk 0:02:38]}  Bxf3 {[%clk 0:02:36]} 15. Qxf3 {[%clk 0:02:39]}  dxc5 {[%clk 0:02:35]} 16. Nd2 {[%clk 0:02:38]}  c4 {[%clk 0:02:31]} 17. Nf1 {[%clk 0:02:31]}  Qd7 {[%clk 0:02:24]} 18. Be3 {[%clk 0:02:25]}  Rab8 {[%clk 0:02:14]} 19. h3 {[%clk 0:02:07]}  Rfc8 {[%clk 0:02:03]} 20. b4 {[%clk 0:01:58]}  Na4 {[%clk 0:01:57]} 21. Rad1 {[%clk 0:01:46]}  Qe6 {[%clk 0:01:54]} 22. Bc1 {[%clk 0:01:23]}  Rd8 {[%clk 0:01:31]} 23. Bxa4 {[%clk 0:01:12]}  bxa4 {[%clk 0:01:30]} 24. Ne3 {[%clk 0:01:10]}  Rd3 {[%clk 0:01:25]} 25. Rxd3 {[%clk 0:01:01]}  cxd3 {[%clk 0:01:23]} 26. Nd5 {[%clk 0:01:02]}  Rd8 {[%clk 0:01:12]} 27. Qxd3 {[%clk 0:00:36]}  Nxd5 {[%clk 0:01:05]} 28. exd5 {[%clk 0:00:37]}  Rxd5 {[%clk 0:00:59]} 29. Qc2 {[%clk 0:00:37]}  Qd7 {[%clk 0:00:53]} 30. Be3 {[%clk 0:00:29]}  Rd3 {[%clk 0:00:31]} 31. Bc5 {[%clk 0:00:20]}  Bxc5 {[%clk 0:00:16]} 32. bxc5 {[%clk 0:00:20]}  Rd2 {[%clk 0:00:14]} 33. Qe4 {[%clk 0:00:19]}  f6 {[%clk 0:00:10]} 34. c6 {[%clk 0:00:17]}  Qc7 {[%clk 0:00:04]} 35. Qc4+ {[%clk 0:00:17]}  Kf8 {[%clk 0:00:00]} 36. Rb1 {[%clk 0:00:16]} 1-0


[Site "https://www.chess.com"]

[Event "Titled Tuesday Blitz August 08 Early 2023"]
[White "Chudnovsky, Jacob"]
[Black "Nemec, Jachym"]
[WhiteFideId "2010046"]
[BlackFideId "23716525"]
[WhiteElo "2393"]
[BlackElo "2508"]
[Result "1/2-1/2"]
[Round "7"]
[TimeControl "180+1"]
[Date "2023.08.08"]
[WhiteClock "0:00:22"]
[BlackClock "0:00:04"]
[Board "149"]

1. e4 {[%clk 0:02:55]}  c6 {[%clk 0:03:00]} 2. d4 {[%clk 0:02:53]}  d5 {[%clk 0:03:00]} 3. Nc3 {[%clk 0:02:54]}  dxe4 {[%clk 0:02:57]} 4. Nxe4 {[%clk 0:02:55]}  Nf6 {[%clk 0:02:58]} 5. Nxf6+ {[%clk 0:02:55]}  gxf6 {[%clk 0:02:58]} 6. c3 {[%clk 0:02:54]}  Rg8 {[%clk 0:02:53]} 7. Nf3 {[%clk 0:02:53]}  Qc7 {[%clk 0:02:52]} 8. g3 {[%clk 0:02:48]}  Bg4 {[%clk 0:02:51]} 9. Bg2 {[%clk 0:02:47]}  Nd7 {[%clk 0:02:51]} 10. h3 {[%clk 0:02:45]}  Bf5 {[%clk 0:02:48]} 11. Be3 {[%clk 0:02:44]}  e5 {[%clk 0:02:45]} 12. Qb3 {[%clk 0:02:35]}  Be6 {[%clk 0:02:41]} 13. Qc2 {[%clk 0:02:33]}  Bd6 {[%clk 0:02:29]} 14. O-O-O {[%clk 0:02:30]}  O-O-O {[%clk 0:02:29]} 15. Kb1 {[%clk 0:02:26]}  h5 {[%clk 0:02:24]} 16. Nh4 {[%clk 0:02:23]}  Nb6 {[%clk 0:01:56]} 17. Nf5 {[%clk 0:02:14]}  Kb8 {[%clk 0:01:55]} 18. Nxd6 {[%clk 0:02:08]}  Rxd6 {[%clk 0:01:52]} 19. dxe5 {[%clk 0:02:07]}  fxe5 {[%clk 0:01:46]} 20. Rxd6 {[%clk 0:02:06]}  Qxd6 {[%clk 0:01:47]} 21. Rd1 {[%clk 0:02:06]}  Qc7 {[%clk 0:01:45]} 22. Qh7 {[%clk 0:02:01]}  Rd8 {[%clk 0:01:40]} 23. Qxh5 {[%clk 0:02:00]}  Nc4 {[%clk 0:01:35]} 24. Bc1 {[%clk 0:01:54]}  Qb6 {[%clk 0:01:02]} 25. Rxd8+ {[%clk 0:01:49]}  Qxd8 {[%clk 0:01:03]} 26. Be4 {[%clk 0:01:42]}  f6 {[%clk 0:00:46]} 27. b3 {[%clk 0:01:38]}  Nd6 {[%clk 0:00:43]} 28. Bc2 {[%clk 0:01:31]}  Nb5 {[%clk 0:00:39]} 29. Kb2 {[%clk 0:01:22]}  Nxc3 {[%clk 0:00:35]} 30. Qf3 {[%clk 0:01:14]}  Nd5 {[%clk 0:00:35]} 31. Be4 {[%clk 0:01:07]}  Nb4 {[%clk 0:00:34]} 32. a3 {[%clk 0:00:59]}  Qd4+ {[%clk 0:00:29]} 33. Qc3 {[%clk 0:00:59]}  Qxe4 {[%clk 0:00:29]} 34. Qxb4 {[%clk 0:00:58]}  Qxb4 {[%clk 0:00:21]} 35. axb4 {[%clk 0:00:59]}  Bxh3 {[%clk 0:00:21]} 36. Bh6 {[%clk 0:00:58]}  f5 {[%clk 0:00:21]} 37. Bg7 {[%clk 0:00:58]}  e4 {[%clk 0:00:21]} 38. Be5+ {[%clk 0:00:58]}  Kc8 {[%clk 0:00:21]} 39. Kc3 {[%clk 0:00:57]}  Kd7 {[%clk 0:00:20]} 40. Kd4 {[%clk 0:00:55]}  Bf1 {[%clk 0:00:20]} 41. Bb8 {[%clk 0:00:54]}  a6 {[%clk 0:00:16]} 42. Kc5 {[%clk 0:00:53]}  Bd3 {[%clk 0:00:15]} 43. Bf4 {[%clk 0:00:50]}  Bc2 {[%clk 0:00:15]} 44. Kc4 {[%clk 0:00:49]}  Ke6 {[%clk 0:00:15]} 45. Bc7 {[%clk 0:00:48]}  b5+ {[%clk 0:00:15]} 46. Kc3 {[%clk 0:00:45]}  Bd1 {[%clk 0:00:15]} 47. Bf4 {[%clk 0:00:44]}  Kd5 {[%clk 0:00:15]} 48. Be3 {[%clk 0:00:44]}  Be2 {[%clk 0:00:15]} 49. Bc5 {[%clk 0:00:43]}  Bf1 {[%clk 0:00:13]} 50. Be3 {[%clk 0:00:43]}  Be2 {[%clk 0:00:11]} 51. Bb6 {[%clk 0:00:42]}  Bh5 {[%clk 0:00:11]} 52. Be3 {[%clk 0:00:42]}  Bf7 {[%clk 0:00:12]} 53. Bb6 {[%clk 0:00:41]}  Ke5 {[%clk 0:00:11]} 54. Be3 {[%clk 0:00:40]}  Bd5 {[%clk 0:00:10]} 55. Bf4+ {[%clk 0:00:40]}  Kf6 {[%clk 0:00:10]} 56. Be3 {[%clk 0:00:41]}  Kg6 {[%clk 0:00:11]} 57. Bf4 {[%clk 0:00:40]}  Kh5 {[%clk 0:00:11]} 58. Be3 {[%clk 0:00:39]}  Kg4 {[%clk 0:00:11]} 59. Bd4 {[%clk 0:00:39]}  Kf3 {[%clk 0:00:11]} 60. Be3 {[%clk 0:00:39]}  Ke2 {[%clk 0:00:11]} 61. Kc2 {[%clk 0:00:37]}  Ke1 {[%clk 0:00:09]} 62. Bd4 {[%clk 0:00:36]}  Ke2 {[%clk 0:00:05]} 63. Be3 {[%clk 0:00:36]}  Be6 {[%clk 0:00:06]} 64. Bd4 {[%clk 0:00:33]}  Kf3 {[%clk 0:00:06]} 65. Be3 {[%clk 0:00:33]}  Bf7 {[%clk 0:00:05]} 66. Kc3 {[%clk 0:00:32]}  Bd5 {[%clk 0:00:06]} 67. Kc2 {[%clk 0:00:32]}  Ke2 {[%clk 0:00:06]} 68. Bd4 {[%clk 0:00:32]}  Ke1 {[%clk 0:00:07]} 69. Be3 {[%clk 0:00:31]}  Bf7 {[%clk 0:00:07]} 70. Bd4 {[%clk 0:00:30]}  Bh5 {[%clk 0:00:07]} 71. Be3 {[%clk 0:00:30]}  Bd1+ {[%clk 0:00:06]} 72. Kc3 {[%clk 0:00:29]}  Bh5 {[%clk 0:00:06]} 73. Kc2 {[%clk 0:00:29]}  Bf7 {[%clk 0:00:06]} 74. Bd4 {[%clk 0:00:28]}  Ke2 {[%clk 0:00:06]} 75. Be3 {[%clk 0:00:28]}  Kf3 {[%clk 0:00:06]} 76. Kc3 {[%clk 0:00:28]}  Bd5 {[%clk 0:00:06]} 77. Kc2 {[%clk 0:00:27]}  Ke2 {[%clk 0:00:06]} 78. Bd4 {[%clk 0:00:27]}  e3 {[%clk 0:00:04]} 79. Bxe3 {[%clk 0:00:24]}  Be4+ {[%clk 0:00:04]} 80. Kc3 {[%clk 0:00:23]}  Kd1 {[%clk 0:00:04]} 81. Bd4 {[%clk 0:00:23]}  Ke2 {[%clk 0:00:04]} 82. Be3 {[%clk 0:00:23]}  Kd1 {[%clk 0:00:04]} 83. Bd4 {[%clk 0:00:22]}  Ke2 {[%clk 0:00:04]} 84. Be3 {[%clk 0:00:22]} 1/2-1/2


[Site "https://www.chess.com"]

[Event "Titled Tuesday Blitz August 08 Early 2023"]
[White "Kanyamarala, Trisha"]
[Black "Glavina, Pablo"]
[WhiteFideId "45004722"]
[BlackFideId "100234"]
[WhiteElo "2364"]
[BlackElo "2507"]
[Result "0-1"]
[Round "7"]
[TimeControl "180+1"]
[Date "2023.08.08"]
[WhiteClock "0:00:01"]
[BlackClock "0:00:15"]
[Board "150"]

1. c4 {[%clk 0:02:55]}  e5 {[%clk 0:02:58]} 2. Nc3 {[%clk 0:02:54]}  Nf6 {[%clk 0:02:55]} 3. g3 {[%clk 0:02:54]}  Bb4 {[%clk 0:02:54]} 4. Bg2 {[%clk 0:02:54]}  Bxc3 {[%clk 0:02:54]} 5. bxc3 {[%clk 0:02:44]}  O-O {[%clk 0:02:55]} 6. Nf3 {[%clk 0:02:44]}  d6 {[%clk 0:02:51]} 7. O-O {[%clk 0:02:38]}  Nc6 {[%clk 0:02:47]} 8. d3 {[%clk 0:02:37]}  h6 {[%clk 0:02:45]} 9. a4 {[%clk 0:02:36]}  Nh7 {[%clk 0:02:40]} 10. Rb1 {[%clk 0:02:35]}  f5 {[%clk 0:02:36]} 11. d4 {[%clk 0:02:31]}  e4 {[%clk 0:02:32]} 12. Nd2 {[%clk 0:02:31]}  Qe7 {[%clk 0:02:29]} 13. Nb3 {[%clk 0:02:24]}  g5 {[%clk 0:02:21]} 14. c5 {[%clk 0:02:21]}  d5 {[%clk 0:02:19]} 15. Qc2 {[%clk 0:02:17]}  Be6 {[%clk 0:02:13]} 16. e3 {[%clk 0:02:07]}  Nf6 {[%clk 0:01:59]} 17. c4 {[%clk 0:02:06]}  Nh5 {[%clk 0:01:56]} 18. f3 {[%clk 0:02:00]}  Rae8 {[%clk 0:01:49]} 19. fxe4 {[%clk 0:01:46]}  fxe4 {[%clk 0:01:47]} 20. cxd5 {[%clk 0:01:43]}  Bxd5 {[%clk 0:01:46]} 21. Qe2 {[%clk 0:01:34]}  Rxf1+ {[%clk 0:01:43]} 22. Bxf1 {[%clk 0:01:32]}  Nf6 {[%clk 0:01:37]} 23. Nd2 {[%clk 0:01:28]}  b6 {[%clk 0:01:29]} 24. Ba3 {[%clk 0:01:25]}  Qe6 {[%clk 0:01:29]} 25. cxb6 {[%clk 0:01:24]}  axb6 {[%clk 0:01:26]} 26. Qb5 {[%clk 0:01:19]}  Kg7 {[%clk 0:01:21]} 27. Bc4 {[%clk 0:01:15]}  Bxc4 {[%clk 0:01:16]} 28. Qxc4 {[%clk 0:01:13]}  Qxc4 {[%clk 0:01:14]} 29. Nxc4 {[%clk 0:01:14]}  Nd5 {[%clk 0:01:14]} 30. Rc1 {[%clk 0:01:11]}  Ra8 {[%clk 0:01:09]} 31. Nb2 {[%clk 0:01:02]}  Nd8 {[%clk 0:01:07]} 32. Kf2 {[%clk 0:00:53]}  Ne6 {[%clk 0:01:06]} 33. Rc6 {[%clk 0:00:49]}  Kf7 {[%clk 0:01:06]} 34. Nc4 {[%clk 0:00:42]}  Rxa4 {[%clk 0:01:04]} 35. Ne5+ {[%clk 0:00:42]}  Kf6 {[%clk 0:01:04]} 36. Ng4+ {[%clk 0:00:41]}  Kf7 {[%clk 0:01:01]} 37. Nxh6+ {[%clk 0:00:39]}  Kf6 {[%clk 0:01:01]} 38. Ng4+ {[%clk 0:00:35]}  Kg7 {[%clk 0:01:01]} 39. Bc1 {[%clk 0:00:30]}  Ra2+ {[%clk 0:01:00]} 40. Ke1 {[%clk 0:00:28]}  Nd8 {[%clk 0:00:45]} 41. Rc4 {[%clk 0:00:27]}  Nb7 {[%clk 0:00:45]} 42. Nf2 {[%clk 0:00:22]}  Nd6 {[%clk 0:00:44]} 43. Rc6 {[%clk 0:00:22]}  Kf7 {[%clk 0:00:43]} 44. Ng4 {[%clk 0:00:20]}  Ke7 {[%clk 0:00:42]} 45. Ne5 {[%clk 0:00:17]}  Rxh2 {[%clk 0:00:42]} 46. Ba3 {[%clk 0:00:15]}  Nxe3 {[%clk 0:00:35]} 47. Rxc7+ {[%clk 0:00:15]}  Ke6 {[%clk 0:00:34]} 48. Bxd6 {[%clk 0:00:14]}  Kxd6 {[%clk 0:00:33]} 49. Rc6+ {[%clk 0:00:11]}  Ke7 {[%clk 0:00:33]} 50. Rxb6 {[%clk 0:00:10]}  Nc2+ {[%clk 0:00:32]} 51. Kf1 {[%clk 0:00:10]}  Nxd4 {[%clk 0:00:32]} 52. Nc6+ {[%clk 0:00:08]}  Nxc6 {[%clk 0:00:32]} 53. Rxc6 {[%clk 0:00:09]}  e3 {[%clk 0:00:24]} 54. Rg6 {[%clk 0:00:08]}  Rf2+ {[%clk 0:00:21]} 55. Ke1 {[%clk 0:00:08]}  Rf5 {[%clk 0:00:20]} 56. Ke2 {[%clk 0:00:08]}  Re5 {[%clk 0:00:15]} 57. Rb6 {[%clk 0:00:07]}  Kf7 {[%clk 0:00:15]} 58. Rb3 {[%clk 0:00:07]}  Kg6 {[%clk 0:00:16]} 59. Rxe3 {[%clk 0:00:07]}  Ra5 {[%clk 0:00:17]} 60. Rb3 {[%clk 0:00:06]}  Kh5 {[%clk 0:00:16]} 61. Kf3 {[%clk 0:00:05]}  Ra4 {[%clk 0:00:16]} 62. Kg2 {[%clk 0:00:04]}  Kg4 {[%clk 0:00:16]} 63. Rb2 {[%clk 0:00:04]}  Rc4 {[%clk 0:00:16]} 64. Rd2 {[%clk 0:00:04]}  Rc3 {[%clk 0:00:16]} 65. Kh2 {[%clk 0:00:03]}  Kf5 {[%clk 0:00:17]} 66. Rf2+ {[%clk 0:00:03]}  Ke4 {[%clk 0:00:17]} 67. Kh3 {[%clk 0:00:03]}  Rf3 {[%clk 0:00:14]} 68. Re2+ {[%clk 0:00:03]}  Kf5 {[%clk 0:00:15]} 69. Rd2 {[%clk 0:00:02]}  Ra3 {[%clk 0:00:15]} 70. Rf2+ {[%clk 0:00:02]}  Kg6 {[%clk 0:00:15]} 71. Kg4 {[%clk 0:00:02]}  Ra4+ {[%clk 0:00:16]} 72. Kh3 {[%clk 0:00:03]}  Kh5 {[%clk 0:00:17]} 73. Rf8 {[%clk 0:00:02]}  g4+ {[%clk 0:00:14]} 74. Kg2 {[%clk 0:00:02]}  Kg5 {[%clk 0:00:14]} 75. Rg8+ {[%clk 0:00:02]}  Kf5 {[%clk 0:00:13]} 76. Rf8+ {[%clk 0:00:03]}  Ke6 {[%clk 0:00:14]} 77. Re8+ {[%clk 0:00:03]}  Kf7 {[%clk 0:00:15]} 78. Re4 {[%clk 0:00:01]}  Rxe4 {[%clk 0:00:15]} 0-1


[Site "https://www.chess.com"]

[Event "Titled Tuesday Blitz August 08 Early 2023"]
[White "Ljukin, Sergei"]
[Black "Ncatt"]
[WhiteFideId "14102200"]
[WhiteElo "2479"]
[BlackElo "2337"]
[Result "0-1"]
[Round "7"]
[TimeControl "180+1"]
[Date "2023.08.08"]
[WhiteClock "0:00:01"]
[BlackClock "0:00:37"]
[Board "154"]

1. e4 {[%clk 0:02:58]}  c5 {[%clk 0:02:59]} 2. Nf3 {[%clk 0:02:56]}  Nc6 {[%clk 0:03:00]} 3. d4 {[%clk 0:02:56]}  cxd4 {[%clk 0:03:00]} 4. Nxd4 {[%clk 0:02:57]}  Nf6 {[%clk 0:03:01]} 5. Nc3 {[%clk 0:02:57]}  e6 {[%clk 0:03:01]} 6. Nxc6 {[%clk 0:02:57]}  bxc6 {[%clk 0:03:01]} 7. e5 {[%clk 0:02:58]}  Nd5 {[%clk 0:03:01]} 8. Ne4 {[%clk 0:02:58]}  Qc7 {[%clk 0:03:01]} 9. f4 {[%clk 0:02:57]}  Qb6 {[%clk 0:03:02]} 10. c4 {[%clk 0:02:56]}  Bb4+ {[%clk 0:03:02]} 11. Ke2 {[%clk 0:02:56]}  f5 {[%clk 0:03:02]} 12. exf6 {[%clk 0:02:51]}  Nxf6 {[%clk 0:03:02]} 13. Be3 {[%clk 0:02:51]}  Qd8 {[%clk 0:03:02]} 14. Nd6+ {[%clk 0:02:49]}  Bxd6 {[%clk 0:03:02]} 15. Qxd6 {[%clk 0:02:48]}  Bb7 {[%clk 0:03:03]} 16. Rg1 {[%clk 0:01:50]}  Rc8 {[%clk 0:02:58]} 17. g4 {[%clk 0:01:47]}  c5 {[%clk 0:02:58]} 18. Bg2 {[%clk 0:01:36]}  Bxg2 {[%clk 0:02:54]} 19. Rxg2 {[%clk 0:01:36]}  Rc6 {[%clk 0:02:54]} 20. Qe5 {[%clk 0:01:35]}  O-O {[%clk 0:02:49]} 21. Rd1 {[%clk 0:01:27]}  Qe7 {[%clk 0:02:43]} 22. g5 {[%clk 0:01:12]}  Ne8 {[%clk 0:02:41]} 23. Kd2 {[%clk 0:01:08]}  Nd6 {[%clk 0:02:35]} 24. b3 {[%clk 0:01:03]}  Rf5 {[%clk 0:02:30]} 25. Qb2 {[%clk 0:00:59]}  Ne4+ {[%clk 0:02:30]} 26. Kc1 {[%clk 0:00:56]}  d5 {[%clk 0:02:30]} 27. Qc2 {[%clk 0:00:50]}  Nd6 {[%clk 0:02:15]} 28. cxd5 {[%clk 0:00:44]}  exd5 {[%clk 0:02:14]} 29. Re2 {[%clk 0:00:44]}  Ne4 {[%clk 0:02:10]} 30. h4 {[%clk 0:00:34]}  c4 {[%clk 0:02:08]} 31. Kb2 {[%clk 0:00:24]}  Ra6 {[%clk 0:01:59]} 32. Ka1 {[%clk 0:00:18]}  Qa3 {[%clk 0:01:39]} 33. bxc4 {[%clk 0:00:10]}  Rc6 {[%clk 0:01:17]} 34. Rd3 {[%clk 0:00:10]}  Qa5 {[%clk 0:01:13]} 35. Qb3 {[%clk 0:00:07]}  dxc4 {[%clk 0:01:08]} 36. Qb8+ {[%clk 0:00:06]}  Rf8 {[%clk 0:01:08]} 37. Qb7 {[%clk 0:00:04]}  cxd3 {[%clk 0:01:01]} 38. Bd4 {[%clk 0:00:04]}  Qc7 {[%clk 0:00:38]} 39. Qb3+ {[%clk 0:00:03]}  Qf7 {[%clk 0:00:38]} 40. Rxe4 {[%clk 0:00:03]}  Qxb3 {[%clk 0:00:36]} 41. axb3 {[%clk 0:00:01]}  d2 {[%clk 0:00:37]} 0-1


[Site "https://www.chess.com"]

[Event "Titled Tuesday Blitz August 08 Early 2023"]
[White "Fernandez Hernandez, Gerardo"]
[Black "Khamdamova, Afruza"]
[WhiteFideId "2207400"]
[BlackFideId "14210444"]
[WhiteElo "2255"]
[BlackElo "2477"]
[Result "0-1"]
[Round "7"]
[TimeControl "180+1"]
[Date "2023.08.08"]
[WhiteClock "0:00:00"]
[BlackClock "0:00:24"]
[Board "155"]

1. e4 {[%clk 0:03:00]}  e5 {[%clk 0:03:00]} 2. Nf3 {[%clk 0:02:59]}  Nc6 {[%clk 0:03:00]} 3. Bc4 {[%clk 0:03:00]}  Nf6 {[%clk 0:03:00]} 4. Ng5 {[%clk 0:02:59]}  d5 {[%clk 0:03:00]} 5. exd5 {[%clk 0:02:59]}  Na5 {[%clk 0:03:00]} 6. Bb5+ {[%clk 0:02:59]}  c6 {[%clk 0:03:00]} 7. dxc6 {[%clk 0:02:59]}  bxc6 {[%clk 0:03:00]} 8. Bd3 {[%clk 0:02:59]}  Nd5 {[%clk 0:02:55]} 9. Nf3 {[%clk 0:02:56]}  Nf4 {[%clk 0:02:54]} 10. O-O {[%clk 0:02:51]}  Nxd3 {[%clk 0:02:49]} 11. cxd3 {[%clk 0:02:52]}  Bd6 {[%clk 0:02:47]} 12. Re1 {[%clk 0:02:49]}  O-O {[%clk 0:02:44]} 13. Nxe5 {[%clk 0:02:39]}  c5 {[%clk 0:02:36]} 14. Qh5 {[%clk 0:01:55]}  Bb7 {[%clk 0:02:26]} 15. Nc3 {[%clk 0:01:40]}  Nc6 {[%clk 0:01:55]} 16. Nc4 {[%clk 0:01:31]}  Nd4 {[%clk 0:01:42]} 17. Re3 {[%clk 0:00:57]}  Bf4 {[%clk 0:01:37]} 18. Rh3 {[%clk 0:00:49]}  h6 {[%clk 0:01:31]} 19. b3 {[%clk 0:00:24]}  Bc8 {[%clk 0:01:03]} 20. Ba3 {[%clk 0:00:16]}  Bxh3 {[%clk 0:01:01]} 21. Qxh3 {[%clk 0:00:17]}  Rc8 {[%clk 0:00:54]} 22. Re1 {[%clk 0:00:14]}  Re8 {[%clk 0:00:53]} 23. Rxe8+ {[%clk 0:00:12]}  Qxe8 {[%clk 0:00:54]} 24. Ne4 {[%clk 0:00:09]}  f5 {[%clk 0:00:44]} 25. g3 {[%clk 0:00:02]}  fxe4 {[%clk 0:00:30]} 26. gxf4 {[%clk 0:00:03]}  Rc6 {[%clk 0:00:26]} 27. Qg2 {[%clk 0:00:00]}  Rg6 {[%clk 0:00:24]} 0-1


[Site "https://www.chess.com"]

[Event "Titled Tuesday Blitz August 08 Early 2023"]
[White "Vaglio Munoz, Jaime"]
[Black "slidingknight2775"]
[WhiteFideId "6500145"]
[WhiteElo "2248"]
[BlackElo "2463"]
[Result "0-1"]
[Round "7"]
[TimeControl "180+1"]
[Date "2023.08.08"]
[WhiteClock "0:00:00"]
[BlackClock "0:00:50"]
[Board "157"]

1. Nf3 {[%clk 0:03:00]}  d5 {[%clk 0:02:59]} 2. c4 {[%clk 0:03:00]}  e6 {[%clk 0:02:59]} 3. b3 {[%clk 0:03:00]}  Nf6 {[%clk 0:02:58]} 4. Bb2 {[%clk 0:03:00]}  c5 {[%clk 0:02:59]} 5. g3 {[%clk 0:02:57]}  Nc6 {[%clk 0:02:58]} 6. Bg2 {[%clk 0:02:58]}  d4 {[%clk 0:02:59]} 7. O-O {[%clk 0:02:56]}  e5 {[%clk 0:02:59]} 8. d3 {[%clk 0:02:55]}  Bd6 {[%clk 0:02:59]} 9. a3 {[%clk 0:02:56]}  a5 {[%clk 0:02:58]} 10. a4 {[%clk 0:02:53]}  O-O {[%clk 0:02:57]} 11. Na3 {[%clk 0:02:54]}  Re8 {[%clk 0:02:56]} 12. Nb5 {[%clk 0:02:54]}  h6 {[%clk 0:02:55]} 13. Bc1 {[%clk 0:02:54]}  Bf5 {[%clk 0:02:53]} 14. e4 {[%clk 0:02:06]}  dxe3 {[%clk 0:02:50]} 15. fxe3 {[%clk 0:02:05]}  e4 {[%clk 0:02:42]} 16. Nh4 {[%clk 0:02:02]}  Bg4 {[%clk 0:02:42]} 17. Qc2 {[%clk 0:01:57]}  Nb4 {[%clk 0:02:40]} 18. Qf2 {[%clk 0:01:54]}  Nxd3 {[%clk 0:02:39]} 19. Qd2 {[%clk 0:01:53]}  Be5 {[%clk 0:02:38]} 20. Rb1 {[%clk 0:01:51]}  Qd7 {[%clk 0:02:20]} 21. Ba3 {[%clk 0:01:45]}  Rad8 {[%clk 0:02:18]} 22. Qxa5 {[%clk 0:01:30]}  g5 {[%clk 0:01:56]} 23. h3 {[%clk 0:00:49]}  Bxh3 {[%clk 0:01:36]} 24. Bxh3 {[%clk 0:00:32]}  Qxh3 {[%clk 0:01:37]} 25. Nf5 {[%clk 0:00:32]}  Bxg3 {[%clk 0:01:34]} 26. Qd2 {[%clk 0:00:10]}  Nf2 {[%clk 0:01:17]} 27. Rxf2 {[%clk 0:00:10]}  Rxd2 {[%clk 0:01:17]} 28. Rxd2 {[%clk 0:00:10]}  Qxf5 {[%clk 0:01:17]} 29. Rf1 {[%clk 0:00:08]}  Qe6 {[%clk 0:01:01]} 30. Bxc5 {[%clk 0:00:07]}  Ng4 {[%clk 0:00:54]} 31. Bd4 {[%clk 0:00:00]}  Be5 {[%clk 0:00:50]} 0-1


[Site "https://www.chess.com"]